bitfinex/quotes_SOLUSD_20250201
["timestamp","ask_amount","ask_price","bid_price","bid_amount"]
[1738453292990,0.12549,213.9,213.84,19.14967976]
[1738453293461,1.12549,213.9,213.84,19.14967976]
[1738453294086,0.12549,213.9,213.84,19.14967976]
[1738453294867,1.12549,213.9,213.84,19.14967976]
[1738453297574,1.12549,213.9,213.84,14.47337976]
[1738453298073,1.59299,213.9,213.84,14.47337976]
[1738453298276,1.0,213.88,213.84,0.03]
[1738453298595,2.5853,213.88,213.84,0.03]
[1738453299491,1.0,213.86,213.84,0.03]
[1738453299797,0.87671026,213.85,213.84,0.03]
[1738453300203,2.0,213.86,213.84,0.03]
[1738453301599,0.4676,213.85,213.84,0.03]
[1738453302097,1.5954174,213.85,213.84,0.03]
[1738453302402,21.5954174,213.85,213.84,0.03]
[1738453302899,0.12549,213.8,213.75,0.03]
[1738453303667,1.0,213.78,213.75,0.03]
[1738453303896,0.12549,213.77,213.75,0.03]
[1738453308695,1.0,213.77,213.75,0.03]
[1738453309092,2.6435,213.77,213.75,0.03]
[1738453309401,1.6435,213.77,213.75,0.03]
[1738453309785,1.0,213.79,213.75,0.03]
[1738453310284,7.7764,213.82,213.77,14.44337976]
[1738453310489,1.6435,213.82,213.79,14.44337976]
[1738453313795,1.6435,213.82,213.78,9.24710534]
[1738453314990,2.6435,213.82,213.78,9.24710534]
[1738453315510,1.12549,213.81,213.76,9.24710534]
[1738453315688,1.12549,213.81,213.75,0.03]
[1738453316811,1.12549,213.81,213.76,9.24710534]
[1738453318414,1.0,213.79,213.75,0.03]
[1738453318723,1.0,213.76,213.75,0.03]
[1738453320014,2.4677,213.78,213.75,0.03]
[1738453320211,1.0,213.76,213.75,0.03]
[1738453322625,2.0,213.78,213.75,0.03]
[1738453323524,0.12549,213.76,213.75,0.03]
[1738453324510,1.12549,213.76,213.75,0.03]
[1738453324901,1.0,213.78,213.75,0.03]
[1738453325195,1.0,213.8,213.75,9.27710534]
[1738453325933,1.0,213.8,213.77,9.24710534]
[1738453326609,2.063,213.84,213.78,4.6777]
[1738453326808,0.063,213.84,213.81,9.24710534]
[1738453327009,0.063,213.84,213.83,9.24710534]
[1738453329141,0.063,213.84,213.83,13.92370534]
[1738453329314,0.063,213.84,213.83,27.33555387]
[1738453329718,0.063,213.84,213.83,32.52792124]
[1738453331508,7.8058,213.99,213.83,32.52792124]
[1738453331509,1.0,213.96,213.87,20.0]
[1738453331830,1.0,213.97,213.93,14.43947271]
[1738453332127,1.0,213.96,213.91,14.43947271]
[1738453332834,1.0,213.94,213.87,34.43947271]
[1738453333202,0.12549,213.93,213.87,14.43947271]
[1738453333406,1.0,213.92,213.85,32.52742124]
[1738453333608,0.25098,213.93,213.86,14.43947271]
[1738453333929,1.0,213.94,213.88,14.43947271]
[1738453334433,0.12549,213.89,213.84,14.43947271]
[1738453334608,0.12549,213.89,213.82,14.43947271]
[1738453335005,0.12549,213.89,213.84,14.43947271]
[1738453335410,0.37647,213.9,213.84,14.43947271]
[1738453335926,1.0,213.92,213.86,19.11527271]
[1738453336424,1.0,213.94,213.88,14.43947271]
[1738453336812,0.25098,213.95,213.9,14.43947271]
[1738453337013,1.0,213.96,213.9,14.43947271]
[1738453337643,0.063,213.92,213.9,14.43947271]
[1738453337839,0.063,213.92,213.88,14.43947271]
[1738453338017,0.063,213.92,213.87,4.6755]
[1738453339846,0.063,213.92,213.84,14.43947271]
[1738453339847,0.12549,213.91,213.84,14.43947271]
[1738453340547,0.063,213.92,213.86,14.43947271]
[1738453340751,0.063,213.92,213.88,14.43947271]
[1738453342249,0.063,213.92,213.89,13.41184853]
[1738453342552,0.063,213.92,213.9,14.43947271]
[1738453344538,21.168,214.03,214.0,38.94553]
[1738453344839,0.87624987,214.02,214.0,38.94553]
[1738453345625,1.34344987,214.02,214.0,38.94553]
[1738453346527,0.12549,214.01,214.0,38.94553]
[1738453346742,0.59269,214.01,214.0,38.94553]
[1738453347550,2.17329,214.01,214.0,38.94553]
[1738453349747,2.23629,214.01,214.0,38.94553]
[1738453354628,0.063,214.01,214.0,38.94553]
[1738453354832,0.063,214.01,214.0,48.18089546]
[1738453355880,0.063,214.01,214.0,43.61833]
[1738453357366,0.063,214.01,214.0,52.85369546]
[1738453357559,0.063,214.01,214.0,38.94553]
[1738453359568,0.5302,214.01,214.0,38.94553]
[1738453359769,0.12549,213.97,213.84,0.03]
[1738453359979,0.87656273,213.96,213.84,0.03]
[1738453360184,0.12549,213.95,213.84,0.03]
[1738453361383,0.12549,213.91,213.84,0.03]
[1738453361580,1.00220058,213.91,213.84,0.03]
[1738453362794,0.12549,213.89,213.84,0.03]
[1738453363100,1.00229944,213.89,213.84,0.03]
[1738453363398,0.12549,213.89,213.84,0.03]
[1738453363703,0.12549,213.89,213.85,14.4374694]
[1738453364503,1.5815,213.92,213.85,14.4374694]
[1738453364871,0.12549,213.91,213.85,14.4374694]
[1738453367300,1.5815,213.92,213.85,14.4374694]
[1738453367595,1.5815,213.92,213.85,19.1135694]
[1738453367966,0.12549,213.94,213.85,19.1135694]
[1738453368168,1.6021,213.97,213.9,14.4374694]
[1738453368370,6.5944,214.01,213.94,14.4374694]
[1738453368667,6.5944,214.01,213.95,14.4374694]
[1738453368991,0.12549,214.0,213.94,14.4374694]
[1738453369688,0.18849,214.01,213.94,14.4374694]
[1738453369907,1.06473767,214.01,213.94,14.4374694]
[1738453370194,1.06473767,214.01,213.92,14.4374694]
[1738453370697,1.06473767,214.01,213.89,34.4374694]
[1738453370989,1.06473767,214.01,213.91,14.4374694]
[1738453371786,1.06473767,214.01,213.93,14.4374694]
[1738453371989,0.18849,214.01,213.93,14.4374694]
[1738453372476,0.063,214.01,213.95,14.4374694]
[1738453372792,0.063,214.01,213.99,14.4374694]
[1738453373680,0.063,214.01,214.0,13.41184853]
[1738453373885,0.063,214.01,214.0,18.08464853]
[1738453377298,0.063,214.01,214.0,32.52211793]
[1738453377995,0.063,214.01,214.0,33.52211793]
[1738453378374,0.0001,214.01,214.0,33.52211793]
[1738453378574,0.063,214.06,214.03,34.96194853]
[1738453378772,0.063,214.12,214.11,14.4374694]
[1738453378975,0.063,214.12,214.1,14.4374694]
[1738453379778,0.063,214.12,214.08,14.4374694]
[1738453380377,0.063,214.12,214.04,14.4374694]
[1738453380595,0.063,214.12,214.01,14.4374694]
[1738453381795,0.063,214.12,214.04,23.06630206]
[1738453382015,0.063,214.12,214.06,23.06630206]
[1738453382706,0.063,214.12,214.03,23.06630206]
[1738453383683,0.063,214.12,214.03,27.73850206]
[1738453384285,0.063,214.12,214.03,23.06630206]
[1738453385202,1.6588,214.11,214.0,18.08454853]
[1738453385382,2.53463087,214.11,214.0,18.08454853]
[1738453385992,1.6588,214.11,214.06,0.03]
[1738453387896,2.53453257,214.11,214.06,0.03]
[1738453394000,1.6588,214.11,214.06,0.03]
[1738453396894,2.5346064,214.11,214.06,0.03]
[1738453397808,1.6588,214.11,214.06,0.03]
[1738453398007,0.87581223,214.1,214.06,0.03]
[1738453398391,1.6588,214.11,214.06,0.03]
[1738453399315,0.063,214.12,214.1,23.06630206]
[1738453399490,0.063,214.12,214.11,23.06630206]
[1738453399692,0.063,214.12,214.06,23.09630206]
[1738453399693,0.063,214.12,214.1,23.06630206]
[1738453400094,0.063,214.12,214.08,23.06630206]
[1738453401114,0.063,214.12,214.1,23.06630206]
[1738453401698,0.063,214.12,214.11,14.40402865]
[1738453402615,0.063,214.12,214.11,27.81587718]
[1738453403315,0.063,214.12,214.11,32.48627718]
[1738453404027,0.063,214.12,214.11,34.13117718]
[1738453404236,0.063,214.14,214.13,1.0]
[1738453404398,0.0001,214.17,214.16,20.0]
[1738453404604,0.0001,214.17,214.16,48.8080573]
[1738453405594,0.0001,214.17,214.16,52.48527718]
[1738453407911,0.0001,214.17,214.13,14.40402865]
[1738453408111,0.0001,214.17,214.09,19.07492865]
[1738453409516,0.0001,214.17,214.1,14.40402865]
[1738453409898,0.0001,214.17,214.11,14.40402865]
[1738453410098,0.0001,214.17,214.12,14.40402865]
[1738453410299,0.0001,214.17,214.14,14.40402865]
[1738453410815,0.0001,214.17,214.15,14.40402865]
[1738453411008,0.0001,214.17,214.16,14.40402865]
[1738453411408,0.0001,214.17,214.16,27.81587718]
[1738453411609,0.0001,214.17,214.16,46.88930583]
[1738453411804,0.0001,214.17,214.16,64.12823251]
[1738453413695,0.0001,214.17,214.16,65.12823251]
[1738453414424,0.0001,214.17,214.16,65.25372251]
[1738453414727,0.0001,214.17,214.16,65.77932251]
[1738453415217,0.063,214.21,214.2,20.0]
[1738453415428,0.063,214.21,214.2,43.02349199]
[1738453416006,0.063,214.21,214.2,56.43534052]
[1738453416320,0.0001,214.23,214.21,13.41184853]
[1738453416531,0.0001,214.23,214.22,36.43534052]
[1738453417107,1.6405,214.35,214.25,20.0]
[1738453417348,6.3242,214.38,214.27,59.45883251]
[1738453417505,1.6405,214.41,214.27,59.45883251]
[1738453418111,0.0001,214.28,214.27,59.45883251]
[1738453418309,1.6405,214.41,214.31,20.0]
[1738453418505,1.6405,214.41,214.33,36.43534052]
[1738453419319,1.6405,214.41,214.31,23.02349199]
[1738453419529,1.6405,214.41,214.32,23.02349199]
[1738453419833,1.6405,214.41,214.33,36.43534052]
[1738453420532,1.6405,214.47,214.33,36.43534052]
[1738453421037,0.0001,214.34,214.33,41.60300052]
[1738453421342,1.6405,214.47,214.38,13.41184853]
[1738453421638,1.6405,214.47,214.44,23.02349199]
[1738453422206,7.9647,214.55,214.46,23.02349199]
[1738453422443,7.9647,214.55,214.49,23.02349199]
[1738453423308,7.9647,214.55,214.5,23.02349199]
[1738453424442,1.6405,214.55,214.52,23.02349199]
[1738453424751,0.063,214.56,214.54,23.02349199]
[1738453424959,0.063,214.56,214.52,23.02349199]
[1738453425240,0.063,214.56,214.5,23.02349199]
[1738453425932,0.063,214.56,214.49,23.02349199]
[1738453426146,0.87385171,214.55,214.42,23.02349199]
[1738453426349,1.5671,214.54,214.4,23.02349199]
[1738453426530,6.6237,214.52,214.41,13.41184853]
[1738453426862,20.0,214.49,214.4,23.02349199]
[1738453427033,20.0,214.49,214.34,6.2551]
[1738453427034,2.44133907,214.48,214.34,23.02349199]
[1738453427433,1.5671,214.48,214.38,23.02349199]
[1738453427642,1.5671,214.48,214.42,23.02349199]
[1738453427849,1.5671,214.48,214.45,23.02349199]
[1738453428734,1.5671,214.48,214.44,23.02349199]
[1738453429271,1.5671,214.48,214.43,23.02349199]
[1738453429634,1.5671,214.48,214.38,23.02349199]
[1738453429962,2.44145086,214.48,214.36,23.02349199]
[1738453430126,2.44145086,214.48,214.34,23.02349199]
[1738453430327,20.0,214.47,214.32,23.02349199]
[1738453430630,0.87452357,214.46,214.33,23.02349199]
[1738453431733,0.87452357,214.46,214.35,23.02349199]
[1738453431937,0.87452357,214.46,214.36,13.41184853]
[1738453432149,1.5671,214.48,214.41,23.02349199]
[1738453432346,1.5671,214.48,214.39,23.02349199]
[1738453432642,2.44143578,214.48,214.39,23.02349199]
[1738453432951,1.5671,214.48,214.39,23.02349199]
[1738453433335,1.5671,214.48,214.41,23.02349199]
[1738453433936,2.50435966,214.48,214.39,23.02349199]
[1738453434136,2.50435966,214.48,214.38,23.02349199]
[1738453434344,2.50435966,214.48,214.37,23.02349199]
[1738453435065,1.6301,214.48,214.38,23.02349199]
[1738453436134,1.6301,214.48,214.38,13.41184853]
[1738453436859,2.50440783,214.48,214.38,13.41184853]
[1738453437864,2.50440783,214.48,214.37,23.02349199]
[1738453438166,1.6301,214.48,214.37,23.02349199]
[1738453438780,0.87431983,214.47,214.37,23.02349199]
[1738453438979,0.87431983,214.47,214.35,36.43534052]
[1738453439478,0.87431983,214.47,214.36,23.02349199]
[1738453441091,2.50442184,214.48,214.38,23.02349199]
[1738453442802,2.50442184,214.48,214.39,13.41184853]
[1738453442964,1.6301,214.48,214.44,23.02349199]
[1738453443478,1.6301,214.48,214.46,23.02349199]
[1738453443688,1.6301,214.48,214.47,13.41184853]
[1738453443689,0.063,214.48,214.47,13.41184853]
[1738453444369,0.063,214.48,214.47,41.09794052]
[1738453445068,0.063,214.48,214.47,36.43534052]
[1738453446732,0.063,214.48,214.47,13.41184853]
[1738453447228,0.063,214.48,214.44,23.02349199]
[1738453447394,0.063,214.48,214.46,13.41184853]
[1738453447602,0.063,214.48,214.47,23.02349199]
[1738453448540,0.063,214.56,214.47,23.02349199]
[1738453448746,1.0,214.63,214.47,23.02349199]
[1738453448747,1.03,214.79,214.62,0.50196]
[1738453448904,0.03,214.79,214.67,46.04698398]
[1738453449096,0.03,214.79,214.78,23.02349199]
[1738453450004,0.03,214.79,214.78,36.43534052]
[1738453450205,0.87271859,214.96,214.78,36.43534052]
[1738453450505,0.87271859,214.96,214.87,23.02349199]
[1738453450814,0.87271859,214.96,214.89,23.02349199]
[1738453451225,15.77500306,214.97,214.89,23.02349199]
[1738453451540,14.90259175,214.97,214.89,23.02349199]
[1738453451751,0.87227709,214.96,214.86,37.18652058]
[1738453452815,0.87227709,214.96,214.91,7.32714577]
[1738453453630,0.87227709,214.96,214.93,7.32714577]
[1738453453867,1.0,215.01,214.87,7.32714577]
[1738453454024,0.87242062,215.0,214.88,0.69793649]
[1738453454425,0.90235806,215.02,214.89,13.41184853]
[1738453454634,0.90235806,215.02,214.9,0.69786888]
[1738453456348,0.063,214.96,214.9,0.69786888]
[1738453458360,0.063,214.96,214.91,50.59836911]
[1738453458541,0.063,214.96,214.92,0.6977351]
[1738453458733,0.063,214.96,214.83,29.18485444]
[1738453458930,0.063,214.96,214.84,0.69793159]
[1738453459130,0.063,214.96,214.86,13.41184853]
[1738453459341,0.063,214.96,214.84,13.41184853]
[1738453459559,0.063,214.96,214.85,0.69792705]
[1738453459860,0.93548402,214.96,214.84,13.41184853]
[1738453460067,1.0,214.94,214.83,29.18485444]
[1738453460243,0.87269943,214.93,214.83,29.18485444]
[1738453460626,20.0,214.92,214.81,13.41184853]
[1738453460858,0.87268517,214.91,214.82,0.69814814]
[1738453463473,0.87268517,214.91,214.77,0.69823387]
[1738453463637,0.87268517,214.91,214.78,13.41184853]
[1738453463834,20.87268517,214.91,214.78,0.69822323]
[1738453464137,0.87268517,214.91,214.79,13.41184853]
[1738453464341,0.87267781,214.9,214.8,0.69814225]
[1738453464545,0.8727019,214.91,214.8,0.69814225]
[1738453464764,3.46,214.95,214.81,14.11000203]
[1738453464973,3.46,214.95,214.81,13.41184853]
[1738453465329,3.46,214.95,214.82,1.0]
[1738453465534,3.46,214.95,214.81,14.10998335]
[1738453466170,1.5174,214.94,214.76,2.0]
[1738453466671,6.0138,214.93,214.77,13.41184853]
[1738453466834,20.0,214.9,214.77,13.41184853]
[1738453467235,20.0,214.9,214.74,2.69834816]
[1738453467473,20.0,214.9,214.77,1.0]
[1738453467641,20.0,214.9,214.78,0.69828329]
[1738453468035,20.0,214.9,214.81,0.063]
[1738453472366,23.42,214.9,214.81,0.063]
[1738453472572,20.0,214.9,214.81,0.063]
[1738453474579,9.4738,214.93,214.81,0.063]
[1738453474580,3.46,214.93,214.81,0.063]
[1738453474885,0.03,215.02,214.84,1.0]
[1738453475039,4.63809129,215.02,214.86,14.41184853]
[1738453475238,21.17809129,215.02,214.86,13.41184853]
[1738453475455,21.17809129,215.02,214.84,2.69799532]
[1738453475675,27.30569129,215.02,214.85,13.41184853]
[1738453475868,27.30569129,215.02,214.84,0.69799532]
[1738453475869,20.0,214.98,214.84,0.69799532]
[1738453476079,20.0,214.98,214.82,1.0]
[1738453476283,13.41184853,215.01,214.83,13.41184853]
[1738453476480,7.30569129,215.02,214.83,13.41184853]
[1738453476659,7.30569129,215.02,214.83,15.11000655]
[1738453476848,20.0,214.99,214.83,13.41184853]
[1738453477372,20.0,214.99,214.83,14.41184853]
[1738453484282,20.0,214.99,214.88,13.41184853]
[1738453484974,20.0,214.99,214.84,13.41184853]
[1738453487376,20.0,214.93,214.81,1.76110696]
[1738453487582,20.0,214.93,214.81,1.063]
[1738453487790,20.0,214.93,214.81,0.063]
[1738453494711,21.18904156,214.93,214.81,0.063]
[1738453499299,3.34,214.92,214.81,0.063]
[1738453499502,20.0,214.93,214.81,0.063]
[1738453499719,23.34,214.93,214.81,0.063]
[1738453500095,20.0,214.92,214.81,0.063]
[1738453502209,3.34,214.93,214.81,0.063]
[1738453503010,20.0,214.92,214.81,0.063]
[1738453503205,20.0,214.88,214.81,0.0001]
[1738453503721,20.0,214.88,214.71,13.41184853]
[1738453504107,20.0,214.84,214.67,1.0]
[1738453504420,3.34,214.83,214.71,1.0]
[1738453504632,3.34,214.83,214.71,14.41184853]
[1738453504809,3.34,214.83,214.72,13.41184853]
[1738453505216,4.48437545,214.83,214.72,13.41184853]
[1738453506397,3.34,214.83,214.72,13.41184853]
[1738453506594,6.1834,214.87,214.75,13.41184853]
[1738453506813,6.1834,214.87,214.78,13.41184853]
[1738453507011,2.83537768,214.9,214.78,13.41184853]
[1738453507514,20.0,214.88,214.78,13.41184853]
[1738453507827,20.0,214.89,214.78,13.41184853]
[1738453508122,20.0,214.89,214.77,13.41184853]
[1738453508325,20.0,214.89,214.73,7.0329]
[1738453508510,20.0,214.89,214.73,7.73134901]
[1738453509039,20.0,214.89,214.77,13.41184853]
[1738453512520,20.0,214.89,214.77,11.41184853]
[1738453513531,1.6607,214.9,214.77,11.41184853]
[1738453514026,20.0,214.89,214.77,11.41184853]
[1738453514231,20.0,214.87,214.77,11.41184853]
[1738453514606,20.0,214.87,214.68,3.28039262]
[1738453514903,0.03,215.02,214.93,2.0]
[1738453515136,0.03,215.02,214.95,1.0]
[1738453515507,0.03,215.02,214.94,0.69766942]
[1738453515827,0.03,215.02,214.93,2.0]
[1738453516033,0.03,215.02,214.93,1.0]
[1738453517447,0.03,215.02,214.94,1.0]
[1738453519547,0.03,215.02,214.95,1.69778295]
[1738453520135,0.03,215.02,214.94,1.0]
[1738453522227,0.03,215.02,214.95,1.69779867]
[1738453524921,0.03,215.02,214.95,15.1096472]
[1738453525545,0.03,215.02,214.95,15.2351372]
[1738453525718,0.03,215.02,214.95,15.1096472]
[1738453530128,0.03,215.02,214.95,13.41184853]
[1738453531066,0.03,215.02,214.95,14.41184853]
[1738453531222,0.03,215.02,214.95,13.41184853]
[1738453533083,20.03,215.02,214.9,0.69777141]
[1738453533258,20.03,215.02,214.89,1.063]
[1738453533259,20.03,215.02,214.89,0.063]
[1738453533461,20.03,215.02,214.89,1.063]
[1738453534181,20.03,215.02,214.89,0.063]
[1738453534560,0.465,215.01,214.89,0.063]
[1738453535662,1.6277,215.01,214.92,1.0]
[1738453536187,1.6277,215.01,214.93,13.41184853]
[1738453536382,1.6277,215.01,214.9,1.6978775]
[1738453536552,0.03,215.02,214.89,0.76094361]
[1738453536892,2.3254,215.01,214.89,0.063]
[1738453537452,2.3254,215.01,214.9,13.41184853]
[1738453537653,2.3254,215.01,214.91,1.0]
[1738453538189,2.3254,215.01,214.9,13.41184853]
[1738453539389,3.9531,215.01,214.9,13.41184853]
[1738453539692,3.9531,215.01,214.89,0.063]
[1738453540052,8.0032,214.97,214.89,0.063]
[1738453541972,1.6582,214.96,214.89,0.063]
[1738453543269,20.0,214.94,214.89,0.063]
[1738453543468,20.0,214.94,214.8,1.6273]
[1738453543469,20.0,214.94,214.8,0.69799891]
[1738453543670,20.0,214.93,214.78,1.0]
[1738453544195,20.0,214.93,214.77,0.76125876]
[1738453544397,20.0,214.93,214.79,13.41184853]
[1738453545290,3.4896,214.92,214.79,13.41184853]
[1738453545495,7.3896,214.92,214.77,0.063]
[1738453546192,20.0,214.88,214.77,13.47484853]
[1738453546771,20.0,214.88,214.77,0.063]
[1738453547090,21.18810153,214.88,214.77,0.063]
[1738453547295,3.9556,214.87,214.77,0.063]
[1738453548366,20.0,214.8,214.68,1.0]
[1738453548594,20.0,214.8,214.69,0.69857425]
[1738453548794,20.0,214.8,214.69,1.69857425]
[1738453549098,20.0,214.8,214.7,14.41184853]
[1738453549285,1.6294,214.79,214.7,13.41184853]
[1738453550177,1.6294,214.79,214.68,1.69855388]
[1738453550373,1.6294,214.79,214.68,1.0]
[1738453550578,1.6294,214.79,214.69,14.41184853]
[1738453550776,1.6294,214.79,214.69,13.41184853]
[1738453550969,1.6294,214.79,214.67,1.063]
[1738453551279,20.0,214.76,214.67,1.063]
[1738453552684,1.6297,214.75,214.67,1.063]
[1738453553488,1.6297,214.75,214.67,0.063]
[1738453553666,20.0,214.71,214.67,0.0001]
[1738453554391,8.1551,214.74,214.67,0.0001]
[1738453554580,1.6223,214.74,214.68,13.41184853]
[1738453554782,0.4657,214.73,214.68,13.41184853]
[1738453555371,0.4657,214.73,214.67,13.41194853]
[1738453557310,0.4657,214.73,214.68,1.0]
[1738453557686,21.865043,214.76,214.68,1.0]
[1738453557687,1.865043,214.76,214.71,27.71421039]
[1738453557873,3.4917,214.79,214.74,13.41184853]
[1738453557874,1.1639,214.79,214.74,13.41184853]
[1738453558082,0.4655,214.78,214.74,13.41184853]
[1738453558505,1.1639,214.79,214.74,13.41184853]
[1738453558694,1.1639,214.79,214.71,1.0]
[1738453558899,1.1639,214.79,214.68,1.0]
[1738453559081,1.1639,214.79,214.67,0.0001]
[1738453560719,1.1639,214.79,214.68,13.41184853]
[1738453560884,1.1639,214.79,214.72,13.41184853]
[1738453561207,1.1639,214.79,214.69,1.0]
[1738453561412,1.1639,214.79,214.67,0.0001]
[1738453561594,21.1639,214.79,214.67,0.0001]
[1738453561997,27.9815,214.78,214.67,0.0001]
[1738453562209,20.0,214.74,214.67,0.0001]
[1738453562593,1.6299,214.73,214.67,0.0001]
[1738453562783,20.0,214.7,214.67,0.0001]
[1738453562983,20.0,214.65,214.59,0.063]
[1738453564425,1.6305,214.64,214.59,0.063]
[1738453564641,21.6305,214.64,214.59,0.0001]
[1738453564796,21.5545,214.63,214.55,0.0001]
[1738453565698,1.5545,214.63,214.55,0.0001]
[1738453566126,20.0,214.61,214.55,0.0001]
[1738453566293,20.0,214.61,214.46,1.0]
[1738453566488,1.6308,214.6,214.45,2.76236492]
[1738453566709,3.82,214.59,214.5,1.0]
[1738453566888,3.82,214.59,214.52,1.0]
[1738453568327,3.82,214.59,214.53,13.41184853]
[1738453568496,0.466,214.58,214.53,13.41184853]
[1738453570259,0.466,214.58,214.52,2.0]
[1738453570260,0.466,214.58,214.52,1.0]
[1738453570567,0.466,214.58,214.54,1.0]
[1738453570929,0.466,214.58,214.51,2.0]
[1738453571348,0.466,214.58,214.51,2.69918187]
[1738453571558,1.6308,214.6,214.51,2.0]
[1738453572262,1.6308,214.6,214.53,1.0]
[1738453572644,0.4659,214.6,214.56,1.0]
[1738453572843,1.86569,214.75,214.59,13.41184853]
[1738453572844,2.32719839,214.66,214.59,13.41184853]
[1738453573040,0.4658,214.67,214.59,13.41184853]
[1738453573242,0.4658,214.67,214.63,1.0]
[1738453573758,20.4657,214.7,214.64,13.41184853]
[1738453575048,0.4657,214.7,214.64,13.41184853]
[1738453575249,0.03,214.74,214.68,13.41184853]
[1738453575554,0.4657,214.72,214.69,1.0]
[1738453575969,0.03,214.74,214.69,1.0]
[1738453576357,0.03,214.74,214.71,1.0]
[1738453576538,0.03,214.74,214.69,1.0]
[1738453577979,0.03,214.74,214.7,13.41184853]
[1738453578750,0.03,214.74,214.7,14.41184853]
[1738453578950,0.03,214.74,214.7,13.41184853]
[1738453579269,0.03,214.74,214.69,1.0]
[1738453580179,0.03,214.74,214.65,1.0]
[1738453580339,0.03,214.74,214.66,1.0]
[1738453580540,0.03,214.74,214.67,13.41184853]
[1738453580740,0.03,214.74,214.68,1.0]
[1738453581263,0.03,214.74,214.72,13.41184853]
[1738453582654,0.03,214.74,214.73,1.0]
[1738453582862,0.03,214.74,214.73,15.41184853]
[1738453583168,0.03,214.74,214.73,16.11037087]
[1738453583377,0.03,214.74,214.73,30.41273273]
[1738453583853,0.03,214.74,214.73,36.57853273]
[1738453584253,0.03,214.74,214.73,17.61917087]
[1738453587070,0.03,214.74,214.73,16.11037087]
[1738453587654,0.03,214.74,214.73,15.41184853]
[1738453587969,0.03,214.74,214.71,1.0]
[1738453588147,0.03,214.74,214.73,1.0]
[1738453589063,0.03,214.74,214.73,2.0]
[1738453592372,0.03,214.74,214.73,29.71421039]
[1738453594061,0.03,214.74,214.73,15.41184853]
[1738453597251,0.03,214.74,214.73,29.71421039]
[1738453597451,0.03,214.74,214.73,15.41184853]
[1738453601781,20.03,214.87,214.76,1.0]
[1738453601961,20.03,214.87,214.77,13.41184853]
[1738453604701,1.6289,214.86,214.77,13.41184853]
[1738453612088,1.6289,214.86,214.78,1.0]
[1738453612465,1.6289,214.86,214.77,13.41184853]
[1738453613699,1.6289,214.86,214.77,13.47484853]
[1738453613991,21.6589,214.86,214.77,13.47484853]
[1738453614490,21.6589,214.86,214.77,14.47484853]
[1738453615162,0.4954,214.86,214.83,13.41184853]
[1738453615359,0.03,214.86,214.84,1.0]
[1738453615582,0.4954,214.86,214.8,1.0]
[1738453615772,0.4954,214.86,214.78,6.0431]
[1738453615973,0.4954,214.86,214.78,0.69827197]
[1738453616678,0.03,214.86,214.79,13.41184853]
[1738453617087,0.03,214.86,214.79,14.41184853]
[1738453617285,0.03,214.86,214.81,13.41184853]
[1738453617876,0.03,214.86,214.79,2.0]
[1738453619201,0.03,214.86,214.81,13.41184853]
[1738453619495,0.03,214.86,214.82,1.0]
[1738453620491,0.03,214.86,214.83,13.41184853]
[1738453620873,0.03,214.86,214.82,1.0]
[1738453621076,0.03,214.86,214.78,1.69818389]
[1738453621271,0.03,214.86,214.79,13.41184853]
[1738453621799,0.03,214.86,214.77,1.063]
[1738453622591,0.03,214.86,214.77,0.063]
[1738453623790,20.0,214.82,214.77,0.063]
[1738453624090,20.0,214.82,214.69,2.69843384]
[1738453624487,20.0,214.82,214.7,13.41184853]
[1738453624674,20.0,214.8,214.7,13.41184853]